bitfinex/quotes_SOLUSD_20260102
["timestamp","ask_amount","ask_price","bid_price","bid_amount"]
[1767384861520,15.23658119,131.93,131.88,26.53927812]
[1767384861713,15.23658119,131.93,131.88,28.95021299]
[1767384862031,14.56824353,131.93,131.88,28.95021299]
[1767384863824,1e-08,131.93,131.88,26.53927812]
[1767384864032,2.41093487,131.95,131.89,0.02999999]
[1767384864201,2.41093487,131.93,131.9,0.02999999]
[1767384864402,7.57755532,131.97,131.92,0.02999999]
[1767384864712,19.04281802,131.98,131.92,0.02999999]
[1767384864713,2.41093487,131.96,131.92,13.86999999]
[1767384865023,2.41093487,131.97,131.92,13.86999999]
[1767384865202,2.51093487,131.98,131.92,16.25093487]
[1767384865906,3.17927253,131.98,131.93,26.52922003]
[1767384868303,0.76833766,131.98,131.93,26.52922003]
[1767384868506,0.76833766,131.98,131.93,28.9401549]
[1767384868823,3.17927253,131.98,131.93,26.52922003]
[1767384870804,3.07239664,131.97,131.93,26.52922003]
[1767384871011,0.66146177,131.96,131.93,26.52922003]
[1767384871413,3.07239664,131.97,131.93,26.52922003]
[1767384872535,0.66146177,131.97,131.93,26.52922003]
[1767384877126,0.66146177,131.97,131.93,40.36922003]
[1767384877936,2.41093487,131.96,131.93,26.52922003]
[1767384878430,0.1,131.98,131.93,26.52922003]
[1767384878645,2.41093487,131.97,131.93,26.52922003]
[1767384879317,7.67692663,131.98,131.93,7.57977715]
[1767384879518,2.41093487,131.96,131.93,7.57977715]
[1767384879938,0.66146177,131.95,131.93,7.57977715]
[1767384880232,0.1,131.98,131.93,26.52922003]
[1767384880445,0.1,131.98,131.93,27.18740437]
[1767384880637,2.41093487,131.97,131.93,27.18740437]
[1767384882142,2.51093487,131.98,131.94,0.65818434]
[1767384882344,3.17239664,131.98,131.94,0.65818434]
[1767384882551,0.66146177,131.97,131.94,0.65818434]
[1767384883435,0.1,131.98,131.94,0.65818434]
[1767384883652,2.51093487,132.0,131.96,0.65818434]
[1767384883810,2.41093487,132.02,131.97,0.65818434]
[1767384884242,0.1,132.03,131.98,27.1773539]
[1767384884431,2.41093487,132.02,131.98,27.1773539]
[1767384885239,0.1,132.03,131.98,19.60044831]
[1767384885423,2.41093487,132.02,131.98,19.60044831]
[1767384885630,3.07239664,132.02,131.98,19.60044831]
[1767384886219,0.66146177,132.02,131.98,27.1773539]
[1767384886418,3.07239664,132.02,131.98,27.1773539]
[1767384889545,1e-08,132.03,132.02,0.65818434]
[1767384889747,1e-08,132.04,132.03,0.65818434]
[1767384890549,1e-08,132.04,132.02,7.5746099]
[1767384890932,1e-08,132.04,132.01,8.23309229]
[1767384891132,2.41093488,132.04,132.01,8.23309229]
[1767384892350,0.25415292,132.05,132.01,8.23309229]
[1767384892546,2.66508779,132.05,132.01,8.23309229]
[1767384893760,2.66353626,132.03,132.01,7.57490795]
[1767384893935,2.66353626,132.03,132.0,7.5756118]
[1767384894650,0.25260139,132.03,132.0,8.23379614]
[1767384894850,2.66353626,132.03,132.0,8.23379614]
[1767384897468,0.25260139,132.03,132.0,7.5756118]
[1767384897664,2.66353626,132.03,132.0,7.5756118]
[1767384898068,0.10053601,132.02,131.99,7.57613577]
[1767384898280,0.25108074,132.01,131.98,8.69055342]
[1767384898599,2.66201561,132.01,131.98,8.23485342]
[1767384898893,7.57405532,132.03,131.99,8.23410459]
[1767384898894,2.50993487,132.03,131.99,8.23410459]
[1767384899056,0.25260139,132.02,131.99,8.23410459]
[1767384899253,2.66353626,132.02,131.99,8.23410459]
[1767384899492,0.25260139,132.02,131.99,8.23410459]
[1767384899668,2.66353626,132.02,131.99,8.23410459]
[1767384900264,19.03140673,132.06,131.98,7.57666601]
[1767384900265,0.25108074,132.0,131.98,7.57666601]
[1767384900472,0.25108074,132.0,131.97,8.25664122]
[1767384900853,2.66201561,132.0,131.97,7.57719249]
[1767384901068,0.25108074,132.0,131.97,7.57719249]
[1767384901263,0.25108074,132.0,131.96,0.67944873]
[1767384901264,2.66201561,132.0,131.96,8.25722897]
[1767384901574,2.66201561,132.0,131.97,7.57746658]
[1767384902164,0.10204145,131.99,131.97,7.57746658]
[1767384902552,2.51297632,131.99,131.96,8.25726558]
[1767384903153,2.41093487,131.99,131.97,0.67944873]
[1767384903657,0.25415292,132.01,131.97,0.67944873]
[1767384903957,2.41093487,131.99,131.96,8.25726558]
[1767384904587,2.41093487,131.97,131.93,10.81890601]
[1767384904867,2.41093487,131.95,131.92,8.25965103]
[1767384905276,42.76235672,132.02,131.92,8.25965103]
[1767384905277,2.66508779,131.96,131.92,8.25965103]
[1767384906278,7.57691891,131.98,131.91,8.26010088]
[1767384906279,2.50993487,131.95,131.91,8.26010088]
[1767384906460,2.41093487,131.94,131.91,8.26010088]
[1767384906859,2.41093487,131.96,131.93,0.67944873]
[1767384907177,2.50993487,131.96,131.92,8.25974114]
[1767384908373,0.25415292,132.01,131.94,0.67944873]
[1767384908550,0.25415292,132.01,131.93,2.41093487]
[1767384908551,2.41093487,131.97,131.93,2.27944873]
[1767384908749,2.41093487,131.97,131.94,0.67944873]
[1767384909882,0.25415292,131.98,131.94,0.67944873]
[1767384910061,2.66508779,131.98,131.94,0.67944873]
[1767384910463,4.01967244,131.98,131.94,8.25850711]
[1767384910669,0.25415292,131.98,131.94,8.25850711]
[1767384910862,4.01967244,131.98,131.94,8.25850711]
[1767384911264,3.76551952,131.97,131.94,0.67944873]
[1767384911781,3.76551952,131.97,131.94,1.13514873]
[1767384912480,4.01967244,131.98,131.94,1.13514873]
[1767384913589,11.34244598,131.98,131.94,0.4557]
[1767384913781,3.76551952,131.95,131.94,0.4557]
[1767384914087,3.76551952,131.95,131.91,0.67944873]
[1767384914278,3.76551952,131.94,131.91,0.67944873]
[1767384914987,3.76551952,131.93,131.91,0.67944873]
[1767384915182,3.76551952,131.92,131.88,0.67944873]
[1767384915482,3.76551952,131.91,131.88,0.67944873]
[1767384916064,3.76551952,131.9,131.88,0.67944873]
[1767384916268,3.76551952,131.9,131.86,0.87944873]
[1767384916581,3.76551952,131.89,131.86,0.87944873]
[1767384917287,3.76551952,131.89,131.86,8.46316741]
[1767384917465,3.76551952,131.89,131.86,0.87944873]
[1767384917667,3.76551952,131.88,131.86,0.87944873]
[1767384918384,3.76551952,131.88,131.86,0.2]
[1767384919471,3.73551952,131.88,131.86,0.2]
[1767384919669,3.76551952,131.87,131.86,0.2]
[1767384920088,3.76551952,131.87,131.84,14.51944873]
[1767384920262,3.76551952,131.87,131.84,0.67944873]
[1767384920462,3.76551952,131.88,131.84,8.26439527]
[1767384921491,3.76551952,131.85,131.83,0.67944873]
[1767384921669,3.76551952,131.86,131.83,8.26491007]
[1767384921860,7.58280968,131.88,131.84,0.67944873]
[1767384922063,3.76551952,131.87,131.85,0.67944873]
[1767384922484,3.76551952,131.87,131.84,0.67944873]
[1767384922689,3.76551952,131.88,131.85,0.67944873]
[1767384924089,21.42169216,131.9,131.85,0.67944873]
[1767384924501,3.76551952,131.88,131.85,0.67944873]
[1767384924703,3.76551952,131.87,131.85,0.67944873]
[1767384926098,21.42169216,131.9,131.83,8.26475212]
[1767384926099,3.76551952,131.86,131.83,8.26475212]
[1767384926793,13.84,131.9,131.79,37.93735641]
[1767384926794,3.76551952,131.84,131.81,0.67944873]
[1767384930111,7.58407687,131.86,131.81,0.67944873]
[1767384930404,3.76551952,131.84,131.81,0.67944873]
[1767384930981,3.76551952,131.83,131.81,0.67944873]
[1767384931800,7.58407687,131.86,131.81,0.67944873]
[1767384932010,3.76551952,131.83,131.81,0.67944873]
[1767384932194,3.76551952,131.84,131.81,0.67944873]
[1767384932711,3.76551952,131.83,131.81,0.67944873]
[1767384934398,3.76551952,131.82,131.78,0.70231688]
[1767384934709,3.76551952,131.81,131.78,0.70231688]
[1767384935803,3.76551952,131.8,131.78,0.70231688]
[1767384936204,22.19013837,131.86,131.78,0.70231688]
[1767384936205,3.76551952,131.81,131.78,0.70231688]
[1767384936405,3.76551952,131.81,131.79,0.70231688]
[1767384937209,3.76551952,131.83,131.79,0.70231688]
[1767384938701,3.76551952,131.83,131.8,7.58725341]
[1767384939300,3.76551952,131.83,131.8,8.28957029]
[1767384943027,3.76551952,131.82,131.8,8.28957029]
[1767384944138,3.76551952,131.83,131.8,0.70231688]
[1767384944338,3.76551952,131.82,131.8,0.70231688]
[1767384944569,3.76551952,131.82,131.79,0.70231688]
[1767384944742,3.76551952,131.81,131.78,0.70231688]
[1767384944917,3.76551952,131.79,131.75,0.90231688]
[1767384945115,3.76551952,131.78,131.75,0.90231688]
[1767384945315,3.76551952,131.78,131.76,0.70231688]
[1767384946019,13.84,131.82,131.76,0.70231688]
[1767384946236,3.76551952,131.79,131.76,8.29176503]
[1767384946742,3.76551952,131.79,131.77,0.70231688]
[1767384947044,3.76551952,131.8,131.77,0.70231688]
[1767384948648,3.76551952,131.79,131.77,0.70231688]
[1767384950028,3.76551952,131.79,131.76,0.70231688]
[1767384950644,3.76551952,131.79,131.75,7.78987524]
[1767384950645,3.76551952,131.78,131.75,0.90231688]
[1767384950951,3.76551952,131.76,131.75,0.2]
[1767384952027,11.35507628,131.76,131.72,0.2]
[1767384952351,3.76551952,131.73,131.72,0.2]
[1767384953342,3.76551952,131.73,131.7,0.90231688]
[1767384954062,3.76551952,131.73,131.71,0.70231688]
[1767384954264,7.59030648,131.75,131.71,0.70231688]
[1767384954463,3.76551952,131.73,131.71,0.70231688]
[1767384956846,3.76551952,131.74,131.71,0.70231688]
[1767384958968,3.76551952,131.73,131.71,0.70231688]
[1767384960453,7.59019856,131.75,131.71,0.70231688]
[1767384960759,3.76551952,131.73,131.71,0.70231688]
[1767384963032,3.76551952,131.73,131.7,0.91197101]
[1767384963228,3.76551952,131.71,131.7,0.2]
[1767384963545,3.76551952,131.73,131.71,0.71197101]
[1767384964048,3.76551952,131.72,131.7,0.91197101]
[1767384965453,3.76551952,131.73,131.7,0.91197101]
[1767384965951,21.45037069,131.75,131.71,0.71197101]
[1767384966138,3.76551952,131.74,131.71,0.71197101]
[1767384966452,146.68250293,131.81,131.72,0.71197101]
[1767384966660,3.76551952,131.77,131.72,0.71197101]
[1767384967656,11.35458278,131.77,131.73,0.71197101]
[1767384969039,3.76551952,131.77,131.73,0.71197101]
[1767384971655,3.76551952,131.77,131.74,0.71197101]
[1767384972449,2.41761571,131.77,131.74,0.71197101]
[1767384973260,7.58811461,131.79,131.74,8.30265677]
[1767384973559,2.41761571,131.8,131.76,0.71197101]
[1767384974131,13.86,131.81,131.76,0.71197101]
[1767384974338,2.41761571,131.79,131.76,0.71197101]
[1767384974555,2.41761571,131.78,131.76,0.71197101]
[1767384974939,13.86,131.81,131.76,0.71197101]
[1767384974940,2.41761571,131.79,131.76,0.71197101]
[1767384975138,2.41761571,131.78,131.74,8.30265677]
[1767384975362,2.41761571,131.78,131.75,0.71197101]
[1767384975860,2.41761571,131.79,131.75,0.71197101]
[1767384976157,2.41761571,131.78,131.75,0.71197101]
[1767384977963,2.41761571,131.78,131.75,8.30154976]
[1767384978646,13.86,131.81,131.76,0.71197101]
[1767384978967,2.41761571,131.79,131.76,0.71197101]
[1767384980671,16.27761571,131.81,131.78,0.71197101]
[1767384981252,2.41761571,131.83,131.78,0.71197101]
[1767384981466,2.41761571,131.81,131.77,27.27340379]
[1767384981672,2.41761571,131.8,131.77,8.3009518]
[1767384982164,2.41761571,131.8,131.77,0.71197101]
[1767384984261,2.41761571,131.8,131.77,8.30093537]
[1767384984655,2.41761571,131.8,131.78,0.71197101]
[1767384986474,2.41761571,131.79,131.77,0.71197101]
[1767384987373,2.41761571,131.8,131.77,0.71197101]
[1767384988475,26.54992171,131.83,131.77,0.71197101]
[1767384988772,2.41761571,131.8,131.77,0.71197101]
[1767384988974,2.41761571,131.79,131.77,0.71197101]
[1767384989680,2.41761571,131.78,131.75,0.69429643]
[1767384989977,2.41761571,131.77,131.75,0.69429643]
[1767384990475,15.10550883,131.76,131.72,0.69429643]
[1767384990681,2.41761571,131.73,131.7,7.7927219]
[1767384990857,2.41761571,131.72,131.7,7.7927219]
[1767384991058,2.41761571,131.73,131.7,7.7927219]
[1767384991382,2.41761571,131.73,131.7,7.79273426]
[1767384991581,2.41761571,131.72,131.7,0.2]
[1767384992090,0.68834346,131.75,131.7,7.79292842]
[1767384992260,2.41761571,131.73,131.7,7.79292842]
[1767384992765,2.41761571,131.73,131.71,0.69429643]
[1767384992967,2.41761571,131.73,131.7,7.79292842]
[1767384992968,2.41761571,131.72,131.7,0.2]
[1767384993167,2.41761571,131.71,131.69,8.48774969]
[1767384993362,8.27394676,131.73,131.69,0.89429643]
[1767384993577,2.41761571,131.7,131.69,0.89429643]
[1767384994185,3.13600746,131.7,131.67,0.69429643]
[1767384994375,2.41761571,131.69,131.67,0.69429643]
[1767384995171,0.71839175,131.7,131.67,0.69429643]
[1767384995373,2.41761571,131.69,131.67,0.69429643]
[1767384998688,2.41761571,131.68,131.65,0.89429643]
[1767384999187,2.41761571,131.68,131.66,0.69429643]
[1767384999387,2.41761571,131.68,131.65,0.89429643]
[1767384999566,2.41761571,131.67,131.65,0.89429643]
[1767385000579,0.0816878,131.66,131.63,0.69429643]
[1767385000772,2.41761571,131.65,131.63,0.69429643]
[1767385001175,0.71839175,131.67,131.63,0.69429643]
[1767385001490,3.13600746,131.67,131.63,0.69429643]
[1767385001695,3.13600746,131.67,131.63,8.29134165]
[1767385001869,3.13600746,131.67,131.64,0.69429643]
[1767385002986,0.71839175,131.67,131.64,0.69429643]
[1767385003286,3.13600746,131.67,131.64,0.69429643]
[1767385003879,3.13600746,131.67,131.65,0.69429643]
[1767385004880,2.41761571,131.67,131.65,0.69429643]
[1767385005473,3.1347725,131.67,131.64,8.2907679]
[1767385006192,2.41761571,131.67,131.65,0.69429643]
[1767385006797,1.69261571,131.66,131.65,0.69429643]
[1767385007093,1.69261571,131.66,131.63,7.59682911]
[1767385007395,1.69261571,131.66,131.63,8.29112554]
[1767385009791,0.71839175,131.65,131.62,0.2]
[1767385010112,2.41761571,131.65,131.62,8.49189047]
[1767385014226,0.71839175,131.69,131.64,0.69429643]
[1767385014392,3.13600746,131.68,131.64,0.69429643]
[1767385015305,2.41761571,131.67,131.64,8.29031248]
[1767385015914,3.13600746,131.68,131.64,8.29031248]
[1767385016216,3.13600746,131.68,131.65,0.69429643]
[1767385016797,0.71839175,131.68,131.65,0.69429643]
[1767385017013,3.13600746,131.7,131.66,0.69429643]
[1767385017412,0.71839175,131.69,131.66,0.69429643]
[1767385018200,0.71839175,131.69,131.65,8.29000055]
[1767385019661,3.12534664,131.69,131.65,8.29000055]
[1767385020500,0.70773093,131.69,131.65,27.27974608]
[1767385021903,0.70773093,131.69,131.66,8.30084866]
[1767385023912,0.70773093,131.66,131.62,0.2]
[1767385024115,3.12534664,131.65,131.62,0.2]
[1767385024332,3.09534664,131.64,131.62,7.79762934]
[1767385024698,3.09534664,131.64,131.62,0.2]
[1767385026215,3.12534664,131.64,131.62,7.79760505]
[1767385027505,0.70773093,131.64,131.62,7.79760505]
[1767385027825,0.70773093,131.65,131.62,7.79760505]
[1767385028010,3.12534664,131.65,131.62,7.79760505]
[1767385030015,2.41761571,131.64,131.62,0.2]
[1767385030224,0.70773093,131.62,131.59,0.70584654]
[1767385030724,2.41761571,131.63,131.59,0.70584654]
[1767385030901,2.41761571,131.63,131.61,0.70584654]
[1767385031104,0.70773093,131.65,131.61,0.70584654]
[1767385031105,8.30370625,131.65,131.61,0.70584654]
[1767385031416,2.41761571,131.64,131.61,0.70584654]
[1767385032307,3.12534664,131.64,131.61,0.70584654]
[1767385032628,4.49276279,131.64,131.61,0.70584654]
[1767385032927,3.78503186,131.63,131.61,0.70584654]
[1767385033625,4.49276279,131.64,131.61,0.70584654]
[1767385035108,3.78503186,131.63,131.61,0.70584654]
[1767385036524,4.49276279,131.64,131.61,0.70584654]
[1767385036822,3.78503186,131.65,131.62,0.70584654]
[1767385037205,4.49276279,131.65,131.62,0.70584654]
[1767385038223,0.70773093,131.66,131.62,0.70584654]
[1767385038408,3.78503186,131.65,131.62,0.70584654]
[1767385038809,4.49276279,131.65,131.62,8.30342589]
[1767385039434,3.78503186,131.65,131.63,0.70584654]
[1767385040039,3.78503186,131.65,131.62,8.30342589]
[1767385040219,3.78503186,131.65,131.63,0.70584654]
[1767385040539,4.49276279,131.65,131.62,8.30342589]
[1767385040735,3.78503186,131.64,131.62,8.30342589]
[1767385040907,3.78503186,131.64,131.58,17.84503186]
[1767385040908,4.49276279,131.63,131.59,0.70584654]
[1767385041235,3.78503186,131.62,131.6,0.70584654]
[1767385041428,3.78503186,131.63,131.6,8.304616]
[1767385041631,3.78503186,131.63,131.61,0.70584654]
[1767385043718,3.78503186,131.64,131.61,8.30398144]
[1767385044426,7.59561736,131.66,131.62,0.70584654]
[1767385044635,3.78503186,131.64,131.62,0.70584654]
[1767385046042,3.78503186,131.64,131.61,0.70584654]
[1767385046239,4.49276279,131.63,131.59,8.30508787]
[1767385046446,4.49276279,131.62,131.59,0.70584654]
[1767385046737,3.78503186,131.61,131.59,0.70584654]
[1767385046935,4.49276279,131.62,131.59,0.70584654]
[1767385048919,0.70773093,131.62,131.59,0.70584654]
[1767385049118,3.78503186,131.61,131.59,0.70584654]
[1767385049527,0.70773093,131.62,131.59,1.19504654]
[1767385049732,3.78503186,131.61,131.59,1.19504654]
[1767385050024,4.49872671,131.6,131.58,0.2]
[1767385050324,3.78503186,131.59,131.58,0.2]
[1767385054229,3.78503186,131.58,131.57,0.2]
[1767385054929,0.71369485,131.58,131.57,0.2]
[1767385055147,4.49872671,131.59,131.57,0.2]
[1767385057837,0.71369485,131.59,131.57,0.2]
[1767385058039,4.49872671,131.59,131.57,0.2]
[1767385060327,21.47844153,131.61,131.57,8.49386073]
[1767385060328,14.59369485,131.61,131.57,8.49386073]
[1767385060534,4.49872671,131.6,131.57,0.89337741]
[1767385060847,4.49872671,131.6,131.57,8.49386755]
[1767385061949,0.71369485,131.6,131.57,8.49386755]
[1767385062152,4.49872671,131.6,131.57,8.49386755]
[1767385062351,13.88,131.61,131.58,0.69337741]
[1767385062557,0.71369485,131.66,131.59,0.69337741]
[1767385062761,4.49872671,131.65,131.6,0.69337741]
[1767385063654,4.49872671,131.65,131.61,0.69337741]
[1767385063840,0.71369485,131.64,131.61,8.29157166]
[1767385064042,0.71369485,131.66,131.61,8.29157166]
[1767385064236,0.71369485,131.65,131.62,0.69337741]
[1767385064644,0.71369485,131.64,131.61,7.59819425]
[1767385064848,0.71369485,131.64,131.61,8.29157166]
[1767385070874,0.71369485,131.64,131.6,19.69647869]
[1767385070875,0.71369485,131.63,131.6,0.7]
[1767385071057,0.71369485,131.63,131.6,8.29874666]
[1767385071267,0.71369485,131.64,131.61,0.69337741]
[1767385072865,0.71369485,131.64,131.61,8.29121402]
[1767385073068,7.59543754,131.66,131.62,0.69337741]
[1767385073069,0.71369485,131.66,131.62,0.69337741]
[1767385073255,4.49872671,131.66,131.62,0.69337741]
[1767385073455,0.71369485,131.65,131.62,0.69337741]
[1767385073770,4.49872671,131.65,131.62,0.69337741]
[1767385074076,4.49872671,131.65,131.61,8.29121402]
[1767385074765,0.71369485,131.65,131.61,8.29121402]
[1767385076080,0.71369485,131.64,131.61,8.29121402]
[1767385077475,0.71369485,131.65,131.62,0.69337741]
[1767385077674,0.71369485,131.66,131.62,0.69337741]
[1767385079476,0.71369485,131.66,131.63,7.59705234]
[1767385080359,0.69895945,131.67,131.64,0.72132696]
[1767385080676,0.69895945,131.68,131.64,4.50635882]
[1767385080876,0.69895945,131.68,131.64,0.72132696]
[1767385081180,0.69895945,131.68,131.63,27.31101015]
[1767385081373,0.69895945,131.68,131.63,44.97604201]
[1767385081576,0.69895945,131.67,131.63,41.19101015]
[1767385082153,0.69895945,131.67,131.63,44.97604201]
[1767385082770,0.69895945,131.67,131.63,41.19101015]
[1767385083260,0.69895945,131.66,131.63,21.45705234]
[1767385085192,0.69895945,131.64,131.6,0.72132696]
[1767385085371,0.69895945,131.63,131.6,0.72132696]
[1767385085877,0.69895945,131.62,131.59,7.59912844]
[1767385088186,0.69895945,131.61,131.57,7.80021208]
[1767385088387,0.69895945,131.59,131.57,0.2]
[1767385088592,0.69895945,131.59,131.57,7.80039724]
[1767385088786,4.48399131,131.6,131.57,7.80039724]
[1767385088984,0.69895945,131.6,131.58,7.5999007]
[1767385089290,0.69895945,131.6,131.57,8.52157671]
[1767385090787,0.69895945,131.62,131.58,0.72132696]
[1767385091087,4.48399131,131.62,131.58,0.72132696]
[1767385091892,0.69895945,131.62,131.59,7.59936165]
[1767385093986,3.12190186,131.62,131.59,7.59936165]
[1767385094713,0.69895945,131.62,131.59,0.72132696]
[1767385094893,0.69895945,131.65,131.61,0.72132696]
[1767385095593,3.12190186,131.65,131.61,0.72132696]
[1767385096095,2.42294241,131.64,131.61,0.72132696]
[1767385096276,3.12190186,131.65,131.61,0.72132696]
[1767385097187,3.12190186,131.65,131.62,7.59762953]
[1767385101493,0.69895945,131.64,131.62,7.59762953]
[1767385101880,0.69895945,131.64,131.61,8.31936319]
[1767385102081,0.69895945,131.63,131.61,7.59803623]
[1767385103294,0.69895945,131.61,131.59,7.59915958]
[1767385103500,0.69895945,131.6,131.58,7.59964759]
[1767385104599,0.69895945,131.61,131.59,7.59925427]
[1767385104788,0.69895945,131.62,131.59,8.32058123]
[1767385105899,7.59616407,131.65,131.6,0.72132696]
[1767385106105,0.69895945,131.64,131.61,0.72132696]
[1767385107301,0.69895945,131.64,131.62,7.59762953]
[1767385109103,0.68666381,131.67,131.63,3.10423557]
[1767385109399,2.42294241,131.68,131.65,0.65840552]
[1767385109729,2.42294241,131.66,131.64,0.65840552]
[1767385109908,0.65833974,131.67,131.64,0.65840552]
[1767385110091,3.08128215,131.68,131.65,0.65840552]
[1767385110302,2.42294241,131.68,131.65,0.65840552]
[1767385112492,3.08128215,131.69,131.66,0.65840552]
[1767385112802,2.42294241,131.69,131.66,0.65840552]
[1767385114608,0.65833974,131.68,131.65,7.59574688]
[1767385117099,0.65833974,131.68,131.65,8.2541524]
[1767385120716,13.88,131.71,131.6,0.65840552]
[1767385120717,0.65833974,131.65,131.6,0.65840552]
[1767385120917,3.08128215,131.65,131.62,7.5973267]
[1767385121619,7.59418724,131.68,131.62,7.5973267]
[1767385121915,2.42294241,131.65,131.62,7.5973267]
[1767385123605,3.08128215,131.65,131.62,7.5973267]
[1767385124625,3.08128215,131.65,131.62,0.65840552]
[1767385126020,3.08128215,131.65,131.62,8.25566713]
[1767385127011,2.42294241,131.68,131.64,0.65840552]
[1767385127400,2.42294241,131.69,131.64,0.65840552]
[1767385127600,3.08128215,131.69,131.64,0.65840552]
[1767385127801,0.52234078,131.68,131.64,0.65840552]
[1767385128622,0.52234078,131.68,131.65,7.59589821]
[1767385129514,3.08128215,131.7,131.66,0.65840552]
[1767385129924,0.52234078,131.69,131.66,0.65840552]
[1767385130642,3.08128215,131.7,131.66,8.25350019]
[1767385130814,0.52234078,131.69,131.66,8.25350019]
[1767385131629,3.08128215,131.7,131.67,0.65840552]
[1767385131927,0.65833974,131.71,131.67,0.65840552]
[1767385132520,0.65833974,131.71,131.68,7.59416767]
[1767385134111,0.65833974,131.71,131.68,8.25257319]
[1767385134327,2.42294241,131.72,131.69,0.65840552]
[1767385134526,2.94528319,131.72,131.69,0.65840552]
[1767385134712,0.52234078,131.72,131.69,0.65840552]
[1767385135514,23.87439028,131.73,131.7,0.65840552]
[1767385135515,14.51833974,131.73,131.7,0.65840552]
[1767385135713,13.86,131.73,131.7,0.65840552]
[1767385136720,14.38234078,131.73,131.7,0.65840552]
[1767385137326,16.80528319,131.73,131.7,0.65840552]
[1767385137527,16.80528319,131.73,131.7,8.2513943]
[1767385137833,0.52234078,131.73,131.7,8.2513943]
[1767385139749,0.52234078,131.73,131.7,0.65840552]
[1767385139928,2.94528319,131.73,131.7,0.65840552]
[1767385140631,0.52368717,131.71,131.68,8.27270953]
[1767385141017,2.42294241,131.72,131.69,0.67880621]
[1767385141736,3.0899608,131.73,131.7,0.67880621]
[1767385142332,0.66701839,131.73,131.7,0.67880621]
[1767385142537,13.96,131.76,131.71,3.10174862]
[1767385142714,13.96,131.76,131.72,0.67880621]
[1767385143024,14.47526628,131.76,131.72,0.67880621]
[1767385143219,16.89820869,131.76,131.72,0.67880621]
[1767385143421,2.93969586,131.74,131.7,0.67880621]
[1767385143631,3.0899608,131.75,131.71,8.27118429]
[1767385144427,21.54959148,131.76,131.68,75.06]
[1767385144428,17.0499608,131.76,131.72,8.27065459]
[1767385144738,0.1,131.76,131.73,0.67880621]
[1767385145118,0.1,131.76,131.74,0.67880621]
[1767385147817,0.1,131.76,131.74,8.26939707]
[1767385149222,0.71274891,131.78,131.75,0.67880621]
[1767385149423,3.13569132,131.78,131.75,0.67880621]
[1767385150435,0.1,131.78,131.76,0.67880621]
[1767385151827,1e-08,131.78,131.76,0.67880621]
[1767385152028,1e-08,131.78,131.77,8.267787]
[1767385153139,1e-08,131.78,131.77,0.67880621]
[1767385153916,3.08941812,131.78,131.74,0.67880621]
[1767385154121,2.42294241,131.76,131.74,0.67880621]
[1767385154319,2.42294241,131.76,131.73,8.26983727]
[1767385154538,3.7777736,131.76,131.73,8.26983727]
[1767385154844,3.7777736,131.76,131.74,8.26944948]
[1767385155140,4.39105978,131.77,131.74,8.26944948]
[1767385156322,4.444792,131.78,131.75,0.67880621]
[1767385156930,1e-08,131.78,131.75,0.67880621]
[1767385157224,1e-08,131.78,131.76,0.67880621]
[1767385158238,1e-08,131.78,131.77,8.267787]
[1767385160028,1e-08,131.78,131.77,7.58898079]
[1767385160447,1e-08,131.78,131.77,8.267787]
[1767385160747,1e-08,131.78,131.77,7.58898079]
[1767385161634,1e-08,131.78,131.77,8.267787]
[1767385161834,1e-08,131.78,131.77,7.58898079]
[1767385162040,1e-08,131.78,131.77,11.36675439]
[1767385164352,8.35281805,131.83,131.77,11.36675439]
[1767385164652,0.61274891,131.82,131.78,0.67880621]
[1767385165827,0.61274891,131.82,131.78,8.26694075]
[1767385167843,0.1,131.83,131.8,0.66995184]
[1767385168054,0.1,131.83,131.81,0.66995184]
[1767385168431,4.57240537,131.83,131.8,0.66995184]
[1767385168631,0.58649295,131.8,131.77,7.58873026]
[1767385168855,3.7777736,131.79,131.76,0.66995184]
[1767385169356,3.7777736,131.79,131.76,8.25943211]
[1767385170834,3.7777736,131.78,131.75,8.26311811]
[1767385171046,11.85934211,131.79,131.75,0.67319649]
[1767385171642,3.8767736,131.78,131.74,7.59056367]
[1767385171852,3.8767736,131.78,131.74,8.26376016]
[1767385172559,3.7777736,131.77,131.74,8.26376016]
[1767385172858,3.8767736,131.78,131.74,8.26376016]
[1767385174739,3.8767736,131.78,131.75,0.67319649]
[1767385176366,4.26731631,131.77,131.73,0.67319649]
[1767385176541,3.7777736,131.76,131.73,0.67319649]
[1767385177348,0.48954271,131.77,131.73,0.67319649]
[1767385177548,4.26731631,131.77,131.73,0.67319649]
[1767385177942,3.7777736,131.76,131.73,0.67319649]
[1767385178143,7.588434,131.78,131.71,8.2653734]
[1767385178144,4.26344993,131.75,131.71,8.2653734]
[1767385178343,3.7777736,131.74,131.71,0.67319649]
[1767385179451,3.7777736,131.73,131.7,0.67319649]
[1767385180557,3.7777736,131.73,131.7,8.2662001]
[1767385181153,3.88450674,131.74,131.7,8.2662001]
[1767385184565,4.2596605,131.73,131.69,8.26654004]
[1767385184794,4.2596605,131.73,131.7,0.67319649]
[1767385185351,3.7777736,131.73,131.7,0.67319649]
[1767385185765,3.7777736,131.73,131.7,8.26620208]